[Event "FIDE Womens Candidates Pool-B 2022-23"]
[Site "Khiva"]
[Date "2022.11.29"]
[Round "1.1"]
[White "Kosteniuk, Alexandra"]
[Black "Goryachkina, Aleksandra"]
[Result "1/2-1/2"]
[ECO "C65"]
[WhiteElo "2521"]
[BlackElo "2584"]
[Annotator "TA"]
[PlyCount "81"]
[EventDate "2022.11.28"]
[EventType "k.o."]
[EventCountry "UZB"]
[SourceTitle "playchess.com"]
[Source "ChessBase"]
[SourceQuality "1"]
[TimeControl "40/5400+30:1800+30"]

{[%evp 9,81,14,25,7,11,10,12,0,17,0,0,0,0,-9,0,-16,-11,-12,-1,-10,-12,-9,-7,-31,-10,-57,-48,-48,-35,-57,-26,-54,-53,-56,-48,-54,-33,-36,-8,-12,-12,-43,-48,-105,-114,-103,-86,-108,-96,-112,-104,-107,-58,-100,-71,-188,-123,-200,-188,-191,-22,-35,-14,-16,-16,-15,-16,-16,-17,-17,-17,-17,-10,-17]} 1. e4 {[%emt 0:00:05]} e5 {[%emt 0:00:13]} 2. Nf3 {[%emt 0:00:06]} Nc6 {[%emt 0:00:08]} 3. Bb5 {[%emt 0:00:05]} Nf6 {[%emt 0:00:21]} 4. d3 {[%emt 0:00:27]} Bc5 {[%emt 0:00:33]} 5. Bxc6 {[%emt 0:00:20]} dxc6 {[%emt 0:00:13]} 6. Nbd2 {[%emt 0:00:58] C65: Ruy Lopez: Berlin Defence (3...Nf6), unusual lines and 4 0-0 Bc5.} Nd7 {[%emt 0:01:51]} 7. O-O {[%emt 0:01:34]} O-O {[%emt 0:01:34]} 8. Nc4 {[%emt 0:01:33]} Re8 {[%emt 0:01:22]} 9. Kh1 {[%emt 0:01:04] [#]} b6 $146 {[%emt 0:06:53]} ({Predecessor:} 9... Bf8 10. Ng1 Nc5 11. Ne2 a5 12. Ng3 b5 13. Ne3 a4 14. Nef5 Re6 15. f4 exf4 16. Bxf4 {1-0 (61) Caruana,F (2835)-Petrosyan,M (2607) Chess.com INT 2020}) 10. Ng1 {[%emt 0:10:47]} Nf8 {[%emt 0:03:53][%cal Bd7f8,Bf8g6,Bg6f4,Bf4h3,Bh3g5,Bg5f7,Bf7d6,Bd6b5,Bb5d4][%mdl 32]} 11. Ne2 {[%emt 0:05:17]} Ng6 {[%emt 0:09:29]} 12. Ng3 {[%emt 0:08:14]} Be6 {[%emt 0:02:55] Black wants to play ...Bxc4.} 13. Ne3 {[%emt 0:02:01]} f6 {[%emt 0:03:09]} 14. Ngf5 {[%emt 0:03:18]} Qd7 {[%emt 0:02:03]} 15. Qf3 {[%emt 0:05:43]} Kh8 {[%emt 0:04:00]} 16. Rg1 {[%emt 0:03:16]} Nf4 {[%emt 0:05:55]} 17. g3 {[%emt 0:04:40]} (17. Rd1 $11 {feels stronger.}) 17... Nh3 $15 {[%emt 0:01:40]} 18. Rf1 {[%emt 0:03:10]} Ng5 {[%emt 0:03:55]} 19. Qe2 {[%emt 0:00:27]} Nf7 {[%emt 0:07:53]} 20. b3 {[%emt 0:07:17]} ({Not} 20. Qg4 $2 g6 21. Qh4 gxf5 $19) 20... Nd6 {[%emt 0:03:58][%cal Rd6f5]} 21. Nh4 {[%emt 0:06:52]} Nb5 {[%emt 0:09:40]} 22. Bb2 {[%emt 0:01:23]} Bd4 {[%emt 0:01:36]} 23. Bxd4 {[%emt 0:05:01]} Nxd4 {[%emt 0:02:19]} 24. Qd1 {[%emt 0:00:23]} c5 {[%emt 0:03:05]} 25. c3 {[%emt 0:03:03]} Nc6 {[%emt 0:01:51]} 26. Qe2 {[%emt 0:00:18]} (26. Qc2 $15) 26... a5 $17 {[%emt 0:02:53]} 27. f4 {[%emt 0:04:03]} a4 {[%emt 0:03:47] White must now prevent ...Rad8.} 28. Rab1 {[%emt 0:05:55]} axb3 {[%emt 0:00:47]} 29. axb3 {[%emt 0:00:01]} Red8 {[%emt 0:00:53]} 30. Rfd1 {[%emt 0:00:38]} Ra3 {[%emt 0:01:18]} (30... exf4 $17 31. gxf4 Ra3) 31. Qc2 {[%emt 0:05:26]} b5 {[%emt 0:02:09]} 32. Nf3 {[%emt 0:04:32]} (32. f5 $17 {was worth a try.} Bf7 33. Nf3) 32... Qf7 {[%emt 0:01:40]} (32... exf4 $19 33. gxf4 Qd6) 33. Nd2 {[%emt 0:01:24]} (33. Qc1 $17 Rda8 34. Rg1) 33... exf4 $19 {[%emt 0:03:03]} 34. gxf4 {[%emt 0:00:04]} f5 $2 {[%emt 0:00:26] [#]} (34... Qh5 $19 {...Qe2 is the strong threat.} 35. Ng2 Rda8) 35. exf5 {[%emt 0:02:44]} (35. Rg1 {seems wilder.} fxe4 36. Nxe4 Qxf4 37. Qg2) 35... Bxf5 {[%emt 0:00:41]} 36. Nxf5 {[%emt 0:00:03] The position is equal.} Qxf5 {[%emt 0:00:07]} 37. Ne4 {[%emt 0:00:21]} Ne7 {[%emt 0:06:37]} ({Don't play} 37... Qxf4 38. Qg2 Ne5 39. Nxc5 $11) 38. Qf2 {[%emt 0:02:36]} Ng6 {[%emt 0:01:25]} 39. Qxc5 {[%emt 0:01:04]} Qxc5 {[%emt 0:01:06]} 40. Nxc5 {[%emt 0:00:02]} Nxf4 {[%emt 0:00:22]} 41. Ra1 {[%emt 0:06:48] Weighted Error Value: White=0.17 (very precise) /Black=0.18 (very precise)} 1/2-1/2

[Event "FIDE Womens Candidates Pool-B 2022-23"]
[Site "Khiva"]
[Date "2022.11.29"]
[Round "1.1"]
[White "Tan, Zhongyi"]
[Black "Lagno, Kateryna"]
[Result "1/2-1/2"]
[ECO "D35"]
[WhiteElo "2514"]
[BlackElo "2563"]
[Annotator "TA"]
[PlyCount "79"]
[EventDate "2022.11.28"]
[EventType "k.o."]
[EventCountry "UZB"]
[SourceTitle "playchess.com"]
[Source "ChessBase"]
[SourceQuality "1"]
[TimeControl "40/5400+30:1800+30"]

{[%evp 15,79,16,14,15,20,22,45,42,44,43,37,34,33,33,46,31,29,26,46,0,8,-29,-20,-30,0,0,0,-43,7,0,14,6,39,33,30,39,46,27,43,31,47,14,14,14,14,16,17,17,18,0,0,0,0,-27,-33,-27,-35,-77,0,0,0,0,0,0,0,0]} 1. d4 {[%emt 0:00:06]} d5 {[%emt 0:00:10]} 2. c4 {[%emt 0:00:10]} e6 {[%emt 0:00:11]} 3. Nc3 {[%emt 0:04:28]} Nf6 {[%emt 0:00:25]} 4. cxd5 {[%emt 0:00:55]} exd5 {[%emt 0:00:15]} 5. Bg5 {[%emt 0:00:33][%cal Bc1g5,Bg5h4,Bh4g3][%mdl 32]} c6 {[%emt 0:00:13]} 6. e3 {[%emt 0:00:51]} h6 {[%emt 0:00:31]} 7. Bh4 {[%emt 0:00:11]} Be7 {[%emt 0:00:29]} 8. Bd3 {[%emt 0:01:36]} O-O {[%emt 0:00:22]} 9. Nge2 {[%emt 0:05:19] D35: Queen's Gambit Declined: Exchange Variation.} Ne8 {[%emt 0:00:55]} 10. Bg3 {[%emt 0:01:34]} Nd6 {[%emt 0:00:10]} 11. Qc2 {[%emt 0:00:22] White is slightly better.} a5 {[%emt 0:00:34]} 12. O-O {[%emt 0:01:20]} Na6 {[%emt 0:00:14]} 13. a3 {[%emt 0:00:11] Inhibits Nb4.} Re8 {[%emt 0:00:17] [#]} 14. Rad1 $146 {[%emt 0:04:19]} ({Predecessor:} 14. f3 Nc4 15. Bf2 b5 16. e4 Rb8 17. exd5 cxd5 18. Nf4 Nc7 19. Rfe1 Bb7 20. Kh1 {0-1 (43) Daghli,A (2432)-Tahbaz,A (2436) Sari 2022}) 14... Bf8 {[%emt 0:04:56]} 15. h3 {[%emt 0:03:17]} Bd7 {[%emt 0:24:10]} 16. Rfe1 {[%emt 0:04:51]} b5 {[%emt 0:08:29]} 17. Nc1 {[%emt 0:11:47]} b4 {[%emt 0:06:29]} 18. axb4 {[%emt 0:07:14]} (18. Na4 {with more complications.} bxa3 19. Bxd6 axb2 20. Bh7+) 18... Nxb4 {[%emt 0:02:38]} 19. Qb1 {[%emt 0:00:08]} Nxd3 {[%emt 0:11:44]} 20. Nxd3 {[%emt 0:00:07]} Bf5 {[%emt 0:02:17]} 21. Qa2 {[%emt 0:07:06] Against a4} Bxd3 {[%emt 0:14:42]} (21... a4 $15) 22. Rxd3 $11 {[%emt 0:00:08]} Nf5 {[%emt 0:00:02]} 23. Bf4 {[%emt 0:00:17]} Bd6 {[%emt 0:01:20]} 24. Ne2 {[%emt 0:01:15]} Bb4 {[%emt 0:08:29]} 25. Rc1 {[%emt 0:01:02]} Rc8 {[%emt 0:00:11]} 26. Qa4 {[%emt 0:06:19]} Qb6 {[%emt 0:05:30]} 27. Qc2 {[%emt 0:02:33]} c5 {[%emt 0:00:46]} 28. Rdd1 {[%emt 0:04:39]} Qe6 {[%emt 0:00:17] [#] Threatens to win with ...cxd4.} 29. dxc5 {[%emt 0:03:18]} Rxc5 {[%emt 0:00:03]} 30. Qd3 {[%emt 0:00:24]} Rec8 {[%emt 0:00:41][%cal Be8c8,Bc8c5,Bc5b5][%mdl 32]} 31. Rxc5 {[%emt 0:00:53]} Rxc5 {[%emt 0:00:02]} 32. Bh2 {[%emt 0:02:01]} (32. Kf1 {seems wilder.} h5 33. Bb8 Qe4 34. Nf4) 32... Qe4 {[%emt 0:01:14]} 33. Qxe4 {[%emt 0:23:16]} dxe4 {[%emt 0:00:04]} 34. Ng3 {[%emt 0:00:11]} Nxg3 {[%emt 0:00:29]} 35. Bxg3 {[%emt 0:00:04] KRB-KRB} f6 {[%emt 0:00:57]} 36. Bd6 {[%emt 0:01:33]} Rb5 {[%emt 0:02:39]} (36... Rc2 $17 37. Bxb4 axb4) 37. Bxb4 {[%emt 0:00:12] The position is equal.} Rxb4 {[%emt 0:00:03]} 38. Rd2 {[%emt 0:00:29]} Kf7 {[%emt 0:00:37]} 39. g4 {[%emt 0:00:06]} g5 {[%emt 0:00:43]} 40. Kg2 {[%emt 0:00:06] Weighted Error Value: White=0.11 (very precise) /Black=0.10 (very precise)} 1/2-1/2

[Event "FIDE Womens Candidates Pool-B 2022-23"]
[Site "Khiva"]
[Date "2022.11.30"]
[Round "1.2"]
[White "Goryachkina, Aleksandra"]
[Black "Kosteniuk, Alexandra"]
[Result "1/2-1/2"]
[ECO "C88"]
[WhiteElo "2584"]
[BlackElo "2521"]
[Annotator "TA"]
[PlyCount "72"]
[EventDate "2022.11.28"]
[EventType "k.o."]
[EventCountry "UZB"]
[SourceTitle "playchess.com"]
[Source "ChessBase"]
[SourceQuality "1"]
[TimeControl "40/5400+30:1800+30"]

{[%evp 20,72,41,6,25,30,45,51,49,58,50,49,48,47,47,45,52,31,37,0,0,0,0,0,0,0,0,0,0,0,0,0,0,0,0,0,0,0,0,0,0,0,0,0,0,0,0,0,0,0,0,0,0,-7,0]} 1. e4 {[%emt 0:00:11]} e5 {[%emt 0:00:06]} 2. Nf3 {[%emt 0:00:14]} Nc6 {[%emt 0:00:04]} 3. Bb5 {[%emt 0:00:29]} a6 {[%emt 0:00:05]} 4. Ba4 {[%emt 0:00:06]} Nf6 {[%emt 0:00:05]} 5. O-O {[%emt 0:00:33]} Be7 {[%emt 0:00:11]} 6. Re1 {[%emt 0:00:37]} b5 {[%emt 0:00:09]} 7. Bb3 {[%emt 0:00:07]} O-O {[%emt 0:00:09]} 8. a4 {[%emt 0:01:07]} Bb7 {[%emt 0:01:32]} 9. d3 {[%emt 0:01:28]} d6 {[%emt 0:00:47]} 10. Bd2 {[%emt 0:00:45]} b4 {[%emt 0:05:16]} 11. c3 {[%emt 0:03:56]} Rb8 $1 {[%emt 0:09:16][%mdl 4] now scores much better than the old 11...bxc3. C88: Closed Ruy Lopez: Anti-Marshall Systems.} 12. cxb4 {[%emt 0:08:08]} Ba8 {[%emt 0:00:29]} 13. b5 $1 {[%emt 0:02:39]} axb5 {[%emt 0:00:14] [#] White is slightly better.} 14. axb5 $146 {[%emt 0:00:06]} ({Predecessor:} 14. a5 Nd4 15. Nxd4 exd4 16. Bf4 c5 17. Nd2 Rb7 18. e5 dxe5 19. Bxe5 Ra7 20. Bxf6 Bxf6 {½-½ (46) Rogulj,B (2427)-Rogic,D (2505) Austria 2000}) 14... Rxb5 {[%emt 0:00:43]} 15. Nc3 {[%emt 0:03:15]} Rb8 {[%emt 0:03:18]} 16. Nd5 {[%emt 0:03:29]} Nxd5 {[%emt 0:07:27]} 17. exd5 {[%emt 0:06:16]} Nd4 {[%emt 0:00:39]} 18. Nxd4 {[%emt 0:00:41]} exd4 {[%emt 0:00:02]} 19. Qc2 {[%emt 0:02:16]} Bg5 {[%emt 0:19:17] [#] aiming for ...Bxd2. The position is equal.} 20. Ba5 {[%emt 0:02:19]} Qd7 {[%emt 0:06:24]} 21. Ba4 {[%emt 0:08:49]} ({Of course not} 21. Bxc7 {[#]} Rxb3 $1 22. Qxb3 Qxc7 $17) 21... Qf5 {[%emt 0:01:23]} 22. Bc6 {[%emt 0:02:21]} (22. Bxc7 {is more complex.} Rbc8 23. Bb3 Bxd5 24. Ra5) 22... Bxc6 {[%emt 0:02:34]} 23. dxc6 {[%emt 0:00:06]} Rfc8 {[%emt 0:00:50]} 24. b4 {[%emt 0:09:03]} h5 {[%emt 0:08:55]} 25. Qe2 {[%emt 0:10:08]} Bf6 {[%emt 0:03:25]} 26. Rac1 {[%emt 0:03:32]} g6 {[%emt 0:08:30]} 27. g3 {[%emt 0:02:38]} Kg7 {[%emt 0:01:10]} 28. Qe4 {[%emt 0:01:57]} Qb5 {[%emt 0:00:30][%cal Oh5h4]} 29. h4 {[%emt 0:02:45]} Ra8 {[%emt 0:00:57]} 30. Qf3 {[%emt 0:03:28]} Ra6 {[%emt 0:06:06]} 31. Rc4 {[%emt 0:00:46]} Be5 {[%emt 0:01:04]} 32. Qg2 {[%emt 0:01:26]} Ra7 {[%emt 0:03:22]} 33. Qh3 {[%emt 0:02:25]} Rd8 {[%emt 0:00:22]} 34. Qg2 {[%emt 0:00:35]} Rc8 {[%emt 0:01:36]} 35. Qh3 {[%emt 0:00:13]} Rd8 {[%emt 0:00:04]} 36. Qg2 {[%emt 0:00:06]} Rc8 {[%emt 0:00:15] Weighted Error Value: White=0.03 (flawless) /Black=0.01 (flawless)} 1/2-1/2

[Event "FIDE Womens Candidates Pool-B 2022-23"]
[Site "Khiva"]
[Date "2022.11.30"]
[Round "1.2"]
[White "Lagno, Kateryna"]
[Black "Tan, Zhongyi"]
[Result "1/2-1/2"]
[ECO "B52"]
[WhiteElo "2563"]
[BlackElo "2514"]
[Annotator "TA"]
[PlyCount "67"]
[EventDate "2022.11.28"]
[EventType "k.o."]
[EventCountry "UZB"]
[SourceTitle "playchess.com"]
[Source "ChessBase"]
[SourceQuality "1"]
[TimeControl "40/5400+30:1800+30"]

{[%evp 19,67,0,0,0,0,0,0,0,0,0,0,0,23,0,71,69,62,62,69,75,65,35,39,29,29,30,20,8,8,10,9,6,9,14,0,0,0,0,0,0,0,0,0,0,0,0,0,0,0,0]} 1. e4 {[%emt 0:00:02]} c5 {[%emt 0:00:07]} 2. Nf3 {[%emt 0:00:13]} d6 {[%emt 0:00:11]} 3. Bb5+ {[%emt 0:00:21]} Bd7 {[%emt 0:00:13]} 4. Bxd7+ {[%emt 0:00:11]} Qxd7 {[%emt 0:00:05]} 5. O-O {[%emt 0:00:16]} Nc6 {[%emt 0:00:52]} 6. c3 {[%emt 0:00:58]} Nf6 {[%emt 0:00:13]} 7. Re1 {[%emt 0:00:19]} e6 {[%emt 0:00:49]} 8. d4 {[%emt 0:00:18]} cxd4 {[%emt 0:00:07]} 9. cxd4 {[%emt 0:00:04]} d5 {[%emt 0:00:12]} 10. e5 {[%emt 0:00:16]} Ne4 {[%emt 0:00:09]} 11. Re3 {[%emt 0:00:18] B52: Sicilian: Moscow Variation with 3...Bd7.} Be7 {[%emt 0:05:36]} 12. Nc3 {[%emt 0:01:31]} Nxc3 {[%emt 0:00:36]} 13. bxc3 {[%emt 0:00:15]} O-O {[%emt 0:08:13]} 14. Ne1 {[%emt 0:00:41] [#]} f6 $146 {[%emt 0:10:42]} ({Predecessor:} 14... Rfc8 15. Rh3 g6 16. Qd2 Bf8 17. Qg5 Qe7 18. Qg4 Qd8 19. Nf3 Bg7 20. Ng5 h6 21. Nxe6 {½-½ (54) Altman,J-Tsoi,D (1853) Maribor 2012}) 15. exf6 {[%emt 0:00:32]} Rxf6 {[%emt 0:00:09]} 16. Re2 {[%emt 0:00:52]} b5 {[%emt 0:02:53]} (16... Rf5 $11 {keeps the balance.}) 17. Bg5 $16 {[%emt 0:01:38]} Rf7 {[%emt 0:00:57]} 18. Bxe7 {[%emt 0:00:22]} Rxe7 {[%emt 0:00:07]} 19. Nd3 {[%emt 0:04:51]} a5 {[%emt 0:03:26]} 20. Rb1 {[%emt 0:29:09][%cal Ba1b1,Bb1b3,Bb3e3][%mdl 32] Inhibits b4.} b4 $1 {[%emt 0:07:36]} 21. cxb4 {[%emt 0:06:11]} Nxd4 {[%emt 0:00:35]} 22. Re1 {[%emt 0:04:18] [#] aiming for Nc5.} Nb5 $1 {[%emt 0:00:41] Hoping for ...Nc3.} 23. Qg4 {[%emt 0:14:41] And now bxa5 would win. The position is equal.} Nc3 {[%emt 0:08:19][%csl LRa2,LRb1]} 24. Rb3 {[%emt 0:01:48]} axb4 {[%emt 0:01:47]} 25. Qxb4 {[%emt 0:06:16]} Ne4 {[%emt 0:01:48]} 26. f3 {[%emt 0:12:50]} Qa7+ {[%emt 0:03:43]} 27. Kh1 {[%emt 0:01:51]} Nf2+ {[%emt 0:00:57]} 28. Nxf2 {[%emt 0:00:04]} Qxf2 {[%emt 0:00:07]} 29. Rbe3 {[%emt 0:02:32]} Rxa2 {[%emt 0:01:39][%csl Ga2][%cal Rf2g2] [#]} 30. Qb8+ {[%emt 0:00:07]} Kf7 {[%emt 0:00:03][%csl Ga2][%cal Rf2g2]} 31. Qf4+ {[%emt 0:00:05]} Kg8 {[%emt 0:00:04][%csl Ga2][%cal Rf2g2]} 32. Qb8+ {[%emt 0:00:07]} Kf7 {[%emt 0:00:03][%csl Ga2][%cal Rf2g2]} 33. Qf4+ {[%emt 0:00:06]} Kg8 {[%emt 0:00:02][%csl Ga2][%cal Rf2g2]} 34. Qb8+ {[%emt 0:00:12] Weighted Error Value: White=0.03 (flawless) /Black=0.06 (flawless)} 1/2-1/2

[Event "FIDE Womens Candidates Pool-B 2022-23"]
[Site "Khiva"]
[Date "2022.12.02"]
[Round "1.3"]
[White "Kosteniuk, Alexandra"]
[Black "Goryachkina, Aleksandra"]
[Result "0-1"]
[ECO "C50"]
[WhiteElo "2521"]
[BlackElo "2584"]
[Annotator "TA"]
[PlyCount "124"]
[EventDate "2022.11.28"]
[EventType "k.o."]
[EventCountry "UZB"]
[SourceTitle "playchess.com"]
[Source "ChessBase"]
[SourceQuality "1"]
[TimeControl "40/5400+30:1800+30"]

{[%evp 12,124,11,11,10,10,22,17,24,16,17,17,24,21,27,33,31,29,35,35,35,35,46,35,46,43,43,24,25,0,24,28,29,14,22,18,53,51,41,17,74,54,58,27,98,0,0,0,0,-32,-32,-30,-20,-29,-20,-42,-28,-63,-40,-56,-24,-19,-23,-23,-14,-14,-19,-28,-19,-13,-20,-46,-65,-330,-305,-330,-330,-330,-330,-1310,-705,-1352,-1273,-937,-834,-1035,-1014,-2393,-2238,-1809,-1585,-2725,-2411,-29965,-29970,-29970,-29971,-29971,-29970,-29969,-29969,-29976,-29977,-29978,-29977,-29977,-29977,-29979,-29980,-29984,-29985,-29985,-29986,-29985,-29985]} 1. e4 {[%emt 0:00:04]} e5 {[%emt 0:00:14]} 2. Nf3 {[%emt 0:00:07]} Nc6 {[%emt 0:00:06]} 3. Bc4 {[%emt 0:00:04]} Bc5 {[%emt 0:00:23]} 4. d3 {[%emt 0:00:15]} Nf6 {[%emt 0:00:49]} 5. Nc3 {[%emt 0:00:23]} h6 {[%emt 0:03:37]} 6. h3 {[%emt 0:00:54]} d6 {[%emt 0:01:10]} 7. Na4 {[%emt 0:00:20]} Bb6 {[%emt 0:00:54] C50: Hungarian Defence and Giuoco Pianissimo.} 8. a3 {[%emt 0:00:32]} Be6 {[%emt 0:07:07]} 9. Bxe6 {[%emt 0:02:01]} fxe6 {[%emt 0:00:05] The position is equal.} 10. O-O {[%emt 0:01:01]} O-O {[%emt 0:00:52]} 11. b4 {[%emt 0:00:55] is the new trend.} Qe8 {[%emt 0:05:55]} 12. c3 {[%emt 0:00:43] [#]} Kh8 $5 $146 {[%emt 0:02:54][%mdl 8] New and interesting.} ({Predecessor:} 12... Nh5 13. Kh2 Qf7 14. Nxb6 axb6 15. a4 Nf4 16. Ra2 b5 17. Ne1 Qh5 18. f3 Ra6 {1-0 (47) Abdusattorov,N (2688)-Oparin,G (2683) Chess.com INT 2022}) 13. Ra2 {[%emt 0:02:07]} Qf7 {[%emt 0:06:07]} 14. Re1 {[%emt 0:05:45]} Rad8 {[%emt 0:07:41]} 15. Nxb6 {[%emt 0:03:07]} axb6 {[%emt 0:00:08]} 16. a4 {[%emt 0:00:25]} Ne7 {[%emt 0:03:37]} 17. a5 {[%emt 0:16:10]} Ra8 {[%emt 0:02:46]} 18. Qb3 {[%emt 0:08:46]} bxa5 {[%emt 0:03:24]} 19. Rxa5 {[%emt 0:07:34]} (19. bxa5 $5 {[%cal Rb3b7]} Nc6 20. Qxb7 Nxa5 21. Qb2 $14) 19... Ng6 {[%emt 0:00:43]} 20. d4 {[%emt 0:18:33]} Nd7 {[%emt 0:03:14]} 21. Be3 {[%emt 0:01:54]} b6 {[%emt 0:05:50]} 22. Ra2 {[%emt 0:02:49]} Rxa2 {[%emt 0:11:17]} 23. Qxa2 {[%emt 0:00:05]} exd4 {[%emt 0:01:20]} 24. cxd4 {[%emt 0:02:58]} Nf6 {[%emt 0:00:43]} 25. Qc2 {[%emt 0:03:01]} Nh5 {[%emt 0:03:17]} (25... Ra8 $11) 26. Rc1 {[%emt 0:01:41]} Nhf4 {[%emt 0:03:16][%cal Of4g2] Strongly threatening ...Nxg2!} 27. Ne1 {[%emt 0:01:11] White wants to play Kh2.} d5 {[%emt 0:13:18] [#]} (27... Nh4 $1 $11 {remains equal.}) 28. Kh2 {[%emt 0:00:57]} ({White should play} 28. e5 $1 $16) 28... dxe4 $11 {[%emt 0:01:22]} 29. Qxe4 {[%emt 0:00:54]} Nd5 {[%emt 0:02:00]} 30. Nd3 {[%emt 0:14:13]} Qf5 {[%emt 0:00:30]} 31. Qxf5 {[%emt 0:00:14]} exf5 {[%emt 0:00:22]} 32. Rc6 {[%emt 0:01:16]} Rf6 {[%emt 0:02:23]} 33. Rxf6 {[%emt 0:01:20]} Nxf6 {[%emt 0:00:05][%mdl 4096] Endgame KBN-KNN} 34. Bd2 {[%emt 0:01:47]} Kg8 {[%emt 0:01:38]} 35. f3 {[%emt 0:01:36]} Kf7 {[%emt 0:04:25]} 36. Ne5+ {[%emt 0:01:27]} Nxe5 {[%emt 0:00:06]} 37. dxe5 {[%emt 0:00:02] KB-KN} Nd5 {[%emt 0:01:17]} 38. f4 {[%emt 0:00:17]} Ke6 {[%emt 0:02:01]} 39. Kg3 {[%emt 0:01:17]} Ne7 {[%emt 0:00:40]} 40. Kf3 {[%emt 0:00:19]} Kd5 {[%emt 0:00:29]} 41. g4 {[%emt 0:02:55]} g6 {[%emt 0:02:20] White must now prevent ...Nc6.} 42. Be1 $2 {[%emt 0:06:22][%mdl 8192] This move loses the game for White.} (42. Kg3 $1 $15) 42... Nc6 $19 {[%emt 0:01:39]} 43. gxf5 {[%emt 0:13:37]} gxf5 {[%emt 0:01:27]} 44. Ke3 {[%emt 0:00:36] [#]} Kc4 {[%emt 0:02:38]} 45. Ke2 $2 {[%emt 0:05:35]} (45. e6 Kd5 46. b5) 45... Nd4+ {[%emt 0:00:51]} (45... Nxb4 46. Bxb4 Kd5 47. Bf8 $18) 46. Ke3 {[%emt 0:03:19]} Ne6 {[%emt 0:00:43]} 47. Bd2 {[%emt 0:01:24]} Kb3 {[%emt 0:07:12] Hoping for ...c5.} 48. Ke2 {[%emt 0:00:39]} Kc2 {[%emt 0:06:16]} 49. Ke1 {[%emt 0:00:32]} c5 {[%emt 0:01:29]} 50. b5 {[%emt 0:00:04]} Kd3 {[%emt 0:02:04]} 51. Ba5 {[%emt 0:00:04]} Kc4 {[%emt 0:00:43]} (51... bxa5 $2 52. b6 Nd8 53. e6 Nxe6 54. b7 $18) (51... Nxf4 $2 {loses.} 52. Bxb6 Kc4 53. Ba5 Kxb5 54. Bd2 $17) 52. Bxb6 {[%emt 0:00:02]} Kxb5 {[%emt 0:00:07] Black mates.} 53. Ba7 {[%emt 0:00:03]} Nxf4 {[%emt 0:00:41]} 54. Kd2 {[%emt 0:00:21]} Kc4 {[%emt 0:00:40]} (54... Nxh3 $2 {too greedy.} 55. e6 Ng5 56. e7 Ne4+ 57. Kd3 $17) 55. Bb8 {[%emt 0:00:22]} Kd5 {[%emt 0:01:04]} ({And not} 55... Nxh3 56. e6 Ng5 57. e7 Ne4+ 58. Ke3 $11) 56. h4 {[%emt 0:00:57]} h5 {[%emt 0:00:16]} 57. Ba7 {[%emt 0:00:11]} Kd4 {[%emt 0:00:48]} 58. Bb8 {[%emt 0:00:13]} Ne6 {[%emt 0:00:37]} 59. Kc2 {[%emt 0:00:33]} Ke3 {[%emt 0:00:39]} 60. Kc3 {[%emt 0:00:07]} f4 {[%emt 0:00:20][%cal Bf5f4,Bf4f3][%mdl 32]} 61. Kc4 {[%emt 0:00:06]} f3 {[%emt 0:01:42]} 62. Kd5 {[%emt 0:00:10]} Nf4+ {[%emt 0:01:00] Weighted Error Value: White=0.60/Black=0.15 (very precise)} 0-1